[Event "Titled Tuesday Blitz December 14 2021"]
[White "Yeremyan, Alen"]
[Black "Zierk, Steven"]
[WhiteFideId "13308998"]
[BlackFideId "2034255"]
[WhiteElo "2158"]
[BlackElo "2494"]
[Result "0-1"]
[Round "09"]
[TimeControl "180+1"]
[Date "2021.12.14"]
[WhiteClock "0:00:01"]
[BlackClock "0:00:08"]

1. e4 {[%clk 0:02:53]}  e6 {[%clk 0:02:58]} 2. d4 {[%clk 0:02:49]}  d5 {[%clk 0:02:57]} 3. e5 {[%clk 0:02:49]}  c5 {[%clk 0:02:57]} 4. c3 {[%clk 0:02:50]}  Nc6 {[%clk 0:02:58]} 5. Nf3 {[%clk 0:02:50]}  Bd7 {[%clk 0:02:58]} 6. Bd3 {[%clk 0:02:50]}  cxd4 {[%clk 0:02:55]} 7. O-O {[%clk 0:02:50]}  dxc3 {[%clk 0:02:50]} 8. Nxc3 {[%clk 0:02:51]}  Nge7 {[%clk 0:02:41]} 9. Re1 {[%clk 0:02:50]}  Ng6 {[%clk 0:02:39]} 10. g3 {[%clk 0:02:45]}  Bc5 {[%clk 0:02:33]} 11. h4 {[%clk 0:02:43]}  a6 {[%clk 0:02:31]} 12. h5 {[%clk 0:02:41]}  Nge7 {[%clk 0:02:31]} 13. Kg2 {[%clk 0:02:39]}  h6 {[%clk 0:02:29]} 14. Bf4 {[%clk 0:02:33]}  Nd4 {[%clk 0:02:16]} 15. Rc1 {[%clk 0:02:28]}  Rc8 {[%clk 0:02:08]} 16. Nxd4 {[%clk 0:02:14]}  Bxd4 {[%clk 0:02:07]} 17. Qg4 {[%clk 0:02:15]}  Bxc3 {[%clk 0:01:52]} 18. bxc3 {[%clk 0:02:11]}  Kf8 {[%clk 0:01:52]} 19. Be3 {[%clk 0:02:09]}  Bb5 {[%clk 0:01:42]} 20. Bb1 {[%clk 0:01:57]}  Qd7 {[%clk 0:01:35]} 21. Bd4 {[%clk 0:01:56]}  Nf5 {[%clk 0:01:29]} 22. Bxf5 {[%clk 0:01:47]}  exf5 {[%clk 0:01:30]} 23. Qxg7+ {[%clk 0:01:46]}  Kxg7 {[%clk 0:01:25]} 24. e6+ {[%clk 0:01:47]}  f6 {[%clk 0:01:23]} 25. exd7 {[%clk 0:01:47]}  Rcf8 {[%clk 0:01:21]} 26. Re7+ {[%clk 0:01:21]}  Rf7 {[%clk 0:01:20]} 27. Rce1 {[%clk 0:01:19]}  Bxd7 {[%clk 0:01:15]} 28. R7e2 {[%clk 0:01:01]}  f4 {[%clk 0:01:09]} 29. Kf3 {[%clk 0:00:56]}  fxg3 {[%clk 0:01:08]} 30. fxg3 {[%clk 0:00:56]}  Bf5 {[%clk 0:01:06]} 31. Kf4 {[%clk 0:00:54]}  Be4 {[%clk 0:01:03]} 32. a4 {[%clk 0:00:52]}  Kh7 {[%clk 0:00:51]} 33. c4 {[%clk 0:00:50]}  Rg8 {[%clk 0:00:38]} 34. cxd5 {[%clk 0:00:49]}  f5 {[%clk 0:00:38]} 35. Rf2 {[%clk 0:00:35]}  Re7 {[%clk 0:00:30]} 36. d6 {[%clk 0:00:32]}  Re6 {[%clk 0:00:21]} 37. d7 {[%clk 0:00:22]}  Rg4+ {[%clk 0:00:20]} 38. Ke3 {[%clk 0:00:22]}  Rxg3+ {[%clk 0:00:20]} 39. Kf4 {[%clk 0:00:19]}  Rg4+ {[%clk 0:00:20]} 40. Ke3 {[%clk 0:00:20]}  Bc6+ {[%clk 0:00:20]} 41. Kd3 {[%clk 0:00:17]}  Bxd7 {[%clk 0:00:20]} 42. Rxe6 {[%clk 0:00:16]}  Bxe6 {[%clk 0:00:21]} 43. Re2 {[%clk 0:00:14]}  Rg3+ {[%clk 0:00:18]} 44. Kc2 {[%clk 0:00:11]}  Bb3+ {[%clk 0:00:18]} 45. Kb2 {[%clk 0:00:12]}  Bxa4 {[%clk 0:00:17]} 46. Re7+ {[%clk 0:00:12]}  Kg8 {[%clk 0:00:18]} 47. Rxb7 {[%clk 0:00:13]}  Rg5 {[%clk 0:00:18]} 48. Rb6 {[%clk 0:00:12]}  Rxh5 {[%clk 0:00:18]} 49. Rxa6 {[%clk 0:00:12]}  Bb5 {[%clk 0:00:18]} 50. Rb6 {[%clk 0:00:12]}  Bd3 {[%clk 0:00:18]} 51. Kc3 {[%clk 0:00:12]}  Be4 {[%clk 0:00:18]} 52. Be5 {[%clk 0:00:13]}  Rh1 {[%clk 0:00:17]} 53. Kd4 {[%clk 0:00:12]}  h5 {[%clk 0:00:18]} 54. Bf4 {[%clk 0:00:11]}  Kf7 {[%clk 0:00:16]} 55. Ke5 {[%clk 0:00:10]}  h4 {[%clk 0:00:16]} 56. Rh6 {[%clk 0:00:09]}  h3 {[%clk 0:00:16]} 57. Rh7+ {[%clk 0:00:10]}  Kg6 {[%clk 0:00:15]} 58. Rh6+ {[%clk 0:00:09]}  Kg7 {[%clk 0:00:15]} 59. Rh4 {[%clk 0:00:10]}  Bc2 {[%clk 0:00:13]} 60. Bg3 {[%clk 0:00:07]}  Bd3 {[%clk 0:00:12]} 61. Kf4 {[%clk 0:00:04]}  Kg6 {[%clk 0:00:11]} 62. Rh8 {[%clk 0:00:04]}  Be2 {[%clk 0:00:09]} 63. Ke5 {[%clk 0:00:04]}  Bg4 {[%clk 0:00:09]} 64. Kf4 {[%clk 0:00:04]}  Rg1 {[%clk 0:00:08]} 65. Rh4 {[%clk 0:00:03]}  Rf1+ {[%clk 0:00:07]} 66. Ke5 {[%clk 0:00:04]}  Rf3 {[%clk 0:00:08]} 67. Bf4 {[%clk 0:00:04]}  Rf2 {[%clk 0:00:08]} 68. Rh8 {[%clk 0:00:04]}  Re2+ {[%clk 0:00:08]} 69. Kd6 {[%clk 0:00:04]}  Re4 {[%clk 0:00:08]} 70. Bh2 {[%clk 0:00:03]}  f4 {[%clk 0:00:07]} 71. Rg8+ {[%clk 0:00:03]}  Kf5 {[%clk 0:00:07]} 72. Rf8+ {[%clk 0:00:04]}  Kg5 {[%clk 0:00:08]} 73. Rg8+ {[%clk 0:00:04]}  Kh4 {[%clk 0:00:08]} 74. Rf8 {[%clk 0:00:05]}  f3 {[%clk 0:00:08]} 75. Rh8+ {[%clk 0:00:06]}  Bh5 {[%clk 0:00:08]} 76. Rf8 {[%clk 0:00:05]}  Re2 {[%clk 0:00:08]} 77. Be5 {[%clk 0:00:04]}  Rxe5 {[%clk 0:00:08]} 78. Kxe5 {[%clk 0:00:01]}  h2 {[%clk 0:00:08]} 0-1


[Site "https://www.chess.com"]

[Event "Titled Tuesday Blitz December 14 2021"]
[White "Zubov, Alexander"]
[Black "Arutinian, David"]
[WhiteFideId "14109409"]
[BlackFideId "13601741"]
[WhiteElo "2685"]
[BlackElo "2525"]
[Result "1-0"]
[Round "09"]
[TimeControl "180+1"]
[Date "2021.12.14"]
[WhiteClock "0:00:04"]
[BlackClock "0:00:14"]

1. d4 {[%clk 0:03:00]}  Nf6 {[%clk 0:02:58]} 2. c4 {[%clk 0:03:00]}  e6 {[%clk 0:02:57]} 3. Nc3 {[%clk 0:02:59]}  Bb4 {[%clk 0:02:56]} 4. e3 {[%clk 0:02:59]}  O-O {[%clk 0:02:55]} 5. Ne2 {[%clk 0:02:59]}  d5 {[%clk 0:02:55]} 6. a3 {[%clk 0:02:59]}  Be7 {[%clk 0:02:55]} 7. Ng3 {[%clk 0:02:58]}  c5 {[%clk 0:02:54]} 8. dxc5 {[%clk 0:02:59]}  Bxc5 {[%clk 0:02:54]} 9. b4 {[%clk 0:02:58]}  Be7 {[%clk 0:02:54]} 10. cxd5 {[%clk 0:02:58]}  exd5 {[%clk 0:02:54]} 11. Bd3 {[%clk 0:02:56]}  Nc6 {[%clk 0:02:53]} 12. Nce2 {[%clk 0:02:56]}  a5 {[%clk 0:02:45]} 13. b5 {[%clk 0:02:56]}  Ne5 {[%clk 0:02:46]} 14. Bb2 {[%clk 0:02:56]}  Bd6 {[%clk 0:02:44]} 15. O-O {[%clk 0:02:49]}  Re8 {[%clk 0:02:38]} 16. a4 {[%clk 0:02:39]}  g6 {[%clk 0:02:22]} 17. Nf4 {[%clk 0:02:23]}  h5 {[%clk 0:02:16]} 18. Be2 {[%clk 0:01:47]}  h4 {[%clk 0:02:13]} 19. Nh1 {[%clk 0:01:47]}  h3 {[%clk 0:02:06]} 20. Ng3 {[%clk 0:01:34]}  hxg2 {[%clk 0:02:04]} 21. Kxg2 {[%clk 0:01:34]}  b6 {[%clk 0:02:04]} 22. Bd4 {[%clk 0:01:31]}  Bb7 {[%clk 0:02:04]} 23. Rc1 {[%clk 0:01:13]}  Bc5 {[%clk 0:01:57]} 24. Bxc5 {[%clk 0:00:48]}  bxc5 {[%clk 0:01:56]} 25. Rxc5 {[%clk 0:00:48]}  d4+ {[%clk 0:01:28]} 26. Kg1 {[%clk 0:00:47]}  Ned7 {[%clk 0:01:25]} 27. Rg5 {[%clk 0:00:35]}  dxe3 {[%clk 0:01:20]} 28. fxe3 {[%clk 0:00:32]}  Rxe3 {[%clk 0:01:20]} 29. Qd4 {[%clk 0:00:25]}  Qe7 {[%clk 0:01:08]} 30. Bc4 {[%clk 0:00:25]}  Kh7 {[%clk 0:00:47]} 31. Bxf7 {[%clk 0:00:21]}  Rxg3+ {[%clk 0:00:38]} 32. Rxg3 {[%clk 0:00:20]}  Qxf7 {[%clk 0:00:34]} 33. Nxg6 {[%clk 0:00:18]}  Qxg6 {[%clk 0:00:24]} 34. Rxg6 {[%clk 0:00:17]}  Kxg6 {[%clk 0:00:25]} 35. Re1 {[%clk 0:00:11]}  Rg8 {[%clk 0:00:23]} 36. Re7 {[%clk 0:00:09]}  Kf5+ {[%clk 0:00:20]} 37. Kf1 {[%clk 0:00:09]}  Rg4 {[%clk 0:00:15]} 38. Rxd7 {[%clk 0:00:06]}  Rxd4 {[%clk 0:00:13]} 39. Rxd4 {[%clk 0:00:06]}  Bd5 {[%clk 0:00:13]} 40. Ke2 {[%clk 0:00:03]}  Ke5 {[%clk 0:00:13]} 41. Rh4 {[%clk 0:00:03]}  Ne4 {[%clk 0:00:13]} 42. Ke3 {[%clk 0:00:04]}  Nc3 {[%clk 0:00:13]} 43. Rh5+ {[%clk 0:00:04]}  Kd6 {[%clk 0:00:14]} 44. h4 {[%clk 0:00:03]}  Nxa4 {[%clk 0:00:13]} 45. Rh8 {[%clk 0:00:03]}  Nc5 {[%clk 0:00:12]} 46. h5 {[%clk 0:00:03]}  a4 {[%clk 0:00:11]} 47. h6 {[%clk 0:00:04]}  Ne6 {[%clk 0:00:12]} 48. Rg8 {[%clk 0:00:02]}  a3 {[%clk 0:00:11]} 49. h7 {[%clk 0:00:02]}  Nc5 {[%clk 0:00:11]} 50. h8=Q {[%clk 0:00:02]}  Bxg8 {[%clk 0:00:11]} 51. Qxg8 {[%clk 0:00:03]}  Kc7 {[%clk 0:00:12]} 52. Qc4 {[%clk 0:00:03]}  Kb6 {[%clk 0:00:12]} 53. Kd4 {[%clk 0:00:04]}  Nd7 {[%clk 0:00:12]} 54. Qc6+ {[%clk 0:00:04]}  Ka5 {[%clk 0:00:13]} 55. Qxd7 {[%clk 0:00:04]}  Kb4 {[%clk 0:00:13]} 56. Qa7 {[%clk 0:00:04]}  a2 {[%clk 0:00:14]} 57. b6 {[%clk 0:00:04]}  a1=Q+ {[%clk 0:00:14]} 58. Qxa1 {[%clk 0:00:04]} 1-0


[Site "https://www.chess.com"]

[Event "Titled Tuesday Blitz December 14 2021"]
[White "Aggelis, Nikolaos"]
[Black "Vokhidov, Shamsiddin"]
[WhiteFideId "4213220"]
[BlackFideId "14204223"]
[WhiteElo "2154"]
[BlackElo "2613"]
[Result "0-1"]
[Round "10"]
[TimeControl "180+1"]
[Date "2021.12.14"]
[WhiteClock "0:00:47"]
[BlackClock "0:00:49"]

1. d4 {[%clk 0:03:00]}  Nf6 {[%clk 0:02:59]} 2. g3 {[%clk 0:02:56]}  c5 {[%clk 0:02:58]} 3. Nf3 {[%clk 0:02:55]}  cxd4 {[%clk 0:02:58]} 4. Nxd4 {[%clk 0:02:56]}  e5 {[%clk 0:02:58]} 5. Nb3 {[%clk 0:02:56]}  d5 {[%clk 0:02:58]} 6. Bg2 {[%clk 0:02:56]}  h6 {[%clk 0:02:57]} 7. O-O {[%clk 0:02:55]}  Nc6 {[%clk 0:02:58]} 8. Nc3 {[%clk 0:02:52]}  Be6 {[%clk 0:02:57]} 9. f4 {[%clk 0:02:53]}  exf4 {[%clk 0:02:56]} 10. gxf4 {[%clk 0:02:53]}  g6 {[%clk 0:02:53]} 11. Kh1 {[%clk 0:02:52]}  Be7 {[%clk 0:02:47]} 12. Be3 {[%clk 0:02:46]}  O-O {[%clk 0:02:36]} 13. f5 {[%clk 0:02:46]}  Bxf5 {[%clk 0:02:35]} 14. Rxf5 {[%clk 0:02:46]}  gxf5 {[%clk 0:02:35]} 15. Bxh6 {[%clk 0:02:43]}  Ng4 {[%clk 0:02:35]} 16. Qd2 {[%clk 0:02:36]}  d4 {[%clk 0:02:29]} 17. Nd5 {[%clk 0:02:33]}  Bd6 {[%clk 0:02:25]} 18. Bxf8 {[%clk 0:02:16]}  Kxf8 {[%clk 0:02:23]} 19. h3 {[%clk 0:02:12]}  Qh4 {[%clk 0:02:21]} 20. e4 {[%clk 0:01:56]}  Qg3 {[%clk 0:02:14]} 21. Kg1 {[%clk 0:01:53]}  Ne3 {[%clk 0:01:55]} 22. Nxe3 {[%clk 0:01:50]}  dxe3 {[%clk 0:01:55]} 23. Qe1 {[%clk 0:01:50]}  Qh2+ {[%clk 0:01:51]} 24. Kf1 {[%clk 0:01:50]}  Qf4+ {[%clk 0:01:51]} 25. Ke2 {[%clk 0:01:46]}  fxe4 {[%clk 0:01:48]} 26. Qg1 {[%clk 0:01:43]}  Nb4 {[%clk 0:01:27]} 27. c3 {[%clk 0:01:35]}  Nd5 {[%clk 0:01:25]} 28. Rd1 {[%clk 0:01:33]}  Qe5 {[%clk 0:01:23]} 29. Rxd5 {[%clk 0:01:27]}  Qxd5 {[%clk 0:01:24]} 30. Qxe3 {[%clk 0:01:27]}  Re8 {[%clk 0:01:18]} 31. Qh6+ {[%clk 0:01:26]}  Kg8 {[%clk 0:01:11]} 32. Nd4 {[%clk 0:01:26]}  Bf8 {[%clk 0:01:10]} 33. Qf4 {[%clk 0:01:22]}  Qe5 {[%clk 0:01:06]} 34. Qxe5 {[%clk 0:01:16]}  Rxe5 {[%clk 0:01:06]} 35. h4 {[%clk 0:01:15]}  f5 {[%clk 0:01:04]} 36. Bh3 {[%clk 0:01:04]}  f4 {[%clk 0:01:04]} 37. Bf5 {[%clk 0:00:57]}  f3+ {[%clk 0:01:03]} 38. Ke3 {[%clk 0:00:56]}  Bc5 {[%clk 0:00:57]} 39. Bxe4 {[%clk 0:00:52]}  Rxe4+ {[%clk 0:00:50]} 40. Kxf3 {[%clk 0:00:47]}  Rxh4 {[%clk 0:00:49]} 0-1


[Site "https://www.chess.com"]

[Event "Titled Tuesday Blitz December 14 2021"]
[White "Arutinian, David"]
[Black "Dev, Shah"]
[WhiteFideId "13601741"]
[BlackFideId "35019058"]
[WhiteElo "2525"]
[BlackElo "2098"]
[Result "1-0"]
[Round "10"]
[TimeControl "180+1"]
[Date "2021.12.14"]
[WhiteClock "0:00:16"]
[BlackClock "0:00:04"]

1. Nf3 {[%clk 0:02:33]}  Nf6 {[%clk 0:02:59]} 2. c4 {[%clk 0:02:33]}  c5 {[%clk 0:02:59]} 3. Nc3 {[%clk 0:02:33]}  Nc6 {[%clk 0:02:59]} 4. e3 {[%clk 0:02:33]}  d5 {[%clk 0:02:59]} 5. cxd5 {[%clk 0:02:31]}  Nxd5 {[%clk 0:03:00]} 6. Bc4 {[%clk 0:02:31]}  Nxc3 {[%clk 0:03:00]} 7. bxc3 {[%clk 0:02:31]}  e5 {[%clk 0:02:52]} 8. O-O {[%clk 0:02:28]}  e4 {[%clk 0:02:48]} 9. Ne1 {[%clk 0:02:23]}  Bd6 {[%clk 0:02:45]} 10. d4 {[%clk 0:02:14]}  exd3 {[%clk 0:02:42]} 11. Qxd3 {[%clk 0:02:12]}  O-O {[%clk 0:02:40]} 12. Qe2 {[%clk 0:02:09]}  Ne5 {[%clk 0:02:34]} 13. Bb3 {[%clk 0:02:06]}  Qc7 {[%clk 0:02:29]} 14. h3 {[%clk 0:02:05]}  c4 {[%clk 0:02:27]} 15. Bc2 {[%clk 0:02:05]}  Be6 {[%clk 0:02:27]} 16. e4 {[%clk 0:02:05]}  Bc5 {[%clk 0:02:25]} 17. Be3 {[%clk 0:02:03]}  Ng6 {[%clk 0:02:22]} 18. Nf3 {[%clk 0:01:57]}  Nf4 {[%clk 0:02:20]} 19. Qd2 {[%clk 0:01:52]}  Rad8 {[%clk 0:02:14]} 20. Nd4 {[%clk 0:01:52]}  Ng6 {[%clk 0:01:52]} 21. f4 {[%clk 0:01:48]}  f5 {[%clk 0:01:48]} 22. e5 {[%clk 0:01:46]}  Bxd4 {[%clk 0:01:45]} 23. Bxd4 {[%clk 0:01:44]}  Ne7 {[%clk 0:01:45]} 24. Qf2 {[%clk 0:01:42]}  b6 {[%clk 0:01:44]} 25. Kh2 {[%clk 0:01:34]}  Kh8 {[%clk 0:01:41]} 26. Rad1 {[%clk 0:01:33]}  Rg8 {[%clk 0:01:41]} 27. Rg1 {[%clk 0:01:31]}  g5 {[%clk 0:01:37]} 28. fxg5 {[%clk 0:01:30]}  Rxg5 {[%clk 0:01:37]} 29. Be3 {[%clk 0:01:28]}  Rg6 {[%clk 0:01:11]} 30. Rd6 {[%clk 0:01:25]}  Rxd6 {[%clk 0:01:03]} 31. exd6 {[%clk 0:01:24]}  Qxd6+ {[%clk 0:01:04]} 32. Bf4 {[%clk 0:01:25]}  Qc6 {[%clk 0:00:57]} 33. Re1 {[%clk 0:01:13]}  Nd5 {[%clk 0:00:50]} 34. Be5+ {[%clk 0:01:12]}  Kg8 {[%clk 0:00:50]} 35. g3 {[%clk 0:01:09]}  Qd7 {[%clk 0:00:44]} 36. Bd4 {[%clk 0:01:07]}  Qd6 {[%clk 0:00:32]} 37. Re5 {[%clk 0:01:06]}  Ne7 {[%clk 0:00:28]} 38. Qe3 {[%clk 0:01:02]}  Nc6 {[%clk 0:00:26]} 39. Bxf5 {[%clk 0:00:39]}  Nxe5 {[%clk 0:00:26]} 40. Bxe5 {[%clk 0:00:35]}  Qc5 {[%clk 0:00:15]} 41. Qxc5 {[%clk 0:00:23]}  bxc5 {[%clk 0:00:16]} 42. Bxg6 {[%clk 0:00:23]}  hxg6 {[%clk 0:00:17]} 43. Bd6 {[%clk 0:00:21]}  Bf5 {[%clk 0:00:16]} 44. Bxc5 {[%clk 0:00:21]}  a6 {[%clk 0:00:15]} 45. a3 {[%clk 0:00:21]}  Kf7 {[%clk 0:00:15]} 46. g4 {[%clk 0:00:22]}  Bd3 {[%clk 0:00:15]} 47. Kg3 {[%clk 0:00:22]}  g5 {[%clk 0:00:15]} 48. Bb6 {[%clk 0:00:20]}  Ke6 {[%clk 0:00:12]} 49. Bd8 {[%clk 0:00:20]}  Kd5 {[%clk 0:00:10]} 50. Bxg5 {[%clk 0:00:20]}  Ke4 {[%clk 0:00:10]} 51. h4 {[%clk 0:00:19]}  Ke5 {[%clk 0:00:06]} 52. h5 {[%clk 0:00:19]}  Bh7 {[%clk 0:00:04]} 53. Be3 {[%clk 0:00:17]}  Ke4 {[%clk 0:00:04]} 54. Bd4 {[%clk 0:00:17]}  Kd3 {[%clk 0:00:03]} 55. g5 {[%clk 0:00:18]}  Ke4 {[%clk 0:00:03]} 56. g6 {[%clk 0:00:16]}  Bg8 {[%clk 0:00:04]} 57. h6 {[%clk 0:00:16]} 1-0


[Site "https://www.chess.com"]

[Event "Titled Tuesday Blitz December 14 2021"]
[White "Azadaliyev, Jahandar"]
[Black "Nazaretyan, Tigran"]
[WhiteFideId "13425811"]
[BlackFideId "24162345"]
[WhiteElo "1795"]
[BlackElo "2192"]
[Result "1-0"]
[Round "10"]
[TimeControl "180+1"]
[Date "2021.12.14"]
[WhiteClock "0:00:59"]
[BlackClock "0:00:15"]

1. d4 {[%clk 0:03:00]}  Nf6 {[%clk 0:02:56]} 2. c4 {[%clk 0:03:00]}  c5 {[%clk 0:02:53]} 3. d5 {[%clk 0:03:00]}  e6 {[%clk 0:02:52]} 4. Nc3 {[%clk 0:02:58]}  exd5 {[%clk 0:02:52]} 5. cxd5 {[%clk 0:02:59]}  d6 {[%clk 0:02:53]} 6. Nf3 {[%clk 0:02:58]}  Be7 {[%clk 0:02:46]} 7. g3 {[%clk 0:02:57]}  O-O {[%clk 0:02:47]} 8. Bg2 {[%clk 0:02:58]}  a6 {[%clk 0:02:45]} 9. a4 {[%clk 0:02:57]}  b6 {[%clk 0:02:44]} 10. O-O {[%clk 0:02:57]}  Nbd7 {[%clk 0:02:44]} 11. e4 {[%clk 0:02:56]}  Re8 {[%clk 0:02:43]} 12. Re1 {[%clk 0:02:52]}  Bf8 {[%clk 0:02:43]} 13. Bg5 {[%clk 0:02:51]}  h6 {[%clk 0:02:42]} 14. Bf4 {[%clk 0:02:48]}  g5 {[%clk 0:02:42]} 15. Bd2 {[%clk 0:02:45]}  Bg7 {[%clk 0:02:39]} 16. h4 {[%clk 0:02:44]}  g4 {[%clk 0:02:36]} 17. Nh2 {[%clk 0:02:42]}  Ne5 {[%clk 0:02:35]} 18. Bf4 {[%clk 0:02:39]}  Bd7 {[%clk 0:02:22]} 19. Qd2 {[%clk 0:02:36]}  Kh7 {[%clk 0:02:20]} 20. Rad1 {[%clk 0:02:24]}  b5 {[%clk 0:02:20]} 21. axb5 {[%clk 0:02:15]}  axb5 {[%clk 0:02:21]} 22. Qe2 {[%clk 0:02:14]}  c4 {[%clk 0:02:15]} 23. Bxe5 {[%clk 0:02:03]}  Rxe5 {[%clk 0:02:12]} 24. Qe3 {[%clk 0:02:03]}  b4 {[%clk 0:01:54]} 25. Ne2 {[%clk 0:02:01]}  Ra2 {[%clk 0:01:54]} 26. Qc1 {[%clk 0:01:56]}  Nxe4 {[%clk 0:01:49]} 27. Qb1 {[%clk 0:01:46]}  Qa5 {[%clk 0:01:30]} 28. Bxe4+ {[%clk 0:01:45]}  f5 {[%clk 0:01:30]} 29. Bg2 {[%clk 0:01:45]}  Re8 {[%clk 0:01:21]} 30. Nf4 {[%clk 0:01:32]}  Rxb2 {[%clk 0:01:15]} 31. Qc1 {[%clk 0:01:30]}  c3 {[%clk 0:01:00]} 32. Ne6 {[%clk 0:01:26]}  Bxe6 {[%clk 0:00:55]} 33. dxe6 {[%clk 0:01:24]}  Qc5 {[%clk 0:00:52]} 34. Qf4 {[%clk 0:01:16]}  b3 {[%clk 0:00:44]} 35. Rd5 {[%clk 0:01:06]}  Qxf2+ {[%clk 0:00:18]} 36. Qxf2 {[%clk 0:01:04]}  Rxf2 {[%clk 0:00:19]} 37. Kxf2 {[%clk 0:01:05]}  b2 {[%clk 0:00:18]} 38. Rxf5 {[%clk 0:01:00]}  c2 {[%clk 0:00:18]} 39. Be4 {[%clk 0:00:59]}  c1=Q {[%clk 0:00:15]} 40. Rf8# {[%clk 0:00:59]} 1-0


[Site "https://www.chess.com"]

[Event "Titled Tuesday Blitz December 14 2021"]
[White "Babazada, Khazar"]
[Black "Tsvetkov, Andrey"]
[WhiteFideId "13413554"]
[BlackFideId "34139360"]
[WhiteElo "2302"]
[BlackElo "2280"]
[Result "1-0"]
[Round "10"]
[TimeControl "180+1"]
[Date "2021.12.14"]
[WhiteClock "0:01:01"]
[BlackClock "0:00:10"]

1. Nf3 {[%clk 0:03:00]}  d5 {[%clk 0:03:00]} 2. c4 {[%clk 0:03:01]}  e6 {[%clk 0:03:00]} 3. g3 {[%clk 0:03:00]}  dxc4 {[%clk 0:03:00]} 4. Qa4+ {[%clk 0:03:00]}  Nd7 {[%clk 0:03:00]} 5. Qxc4 {[%clk 0:03:00]}  a6 {[%clk 0:03:00]} 6. Bg2 {[%clk 0:02:59]}  b5 {[%clk 0:03:00]} 7. Qc2 {[%clk 0:02:59]}  Bb7 {[%clk 0:03:00]} 8. O-O {[%clk 0:02:57]}  Ngf6 {[%clk 0:02:59]} 9. d4 {[%clk 0:02:57]}  c5 {[%clk 0:02:59]} 10. Rd1 {[%clk 0:02:53]}  cxd4 {[%clk 0:02:55]} 11. Nxd4 {[%clk 0:02:52]}  Bxg2 {[%clk 0:02:49]} 12. Kxg2 {[%clk 0:02:53]}  Rc8 {[%clk 0:02:49]} 13. Qd3 {[%clk 0:02:41]}  Bc5 {[%clk 0:02:45]} 14. Nc3 {[%clk 0:02:39]}  O-O {[%clk 0:02:36]} 15. Nb3 {[%clk 0:02:17]}  Bb4 {[%clk 0:02:20]} 16. Ne4 {[%clk 0:02:08]}  Nxe4 {[%clk 0:01:40]} 17. Qxe4 {[%clk 0:02:08]}  Nf6 {[%clk 0:01:40]} 18. Rxd8 {[%clk 0:02:05]}  Nxe4 {[%clk 0:01:40]} 19. Rxf8+ {[%clk 0:02:06]}  Kxf8 {[%clk 0:01:39]} 20. Be3 {[%clk 0:02:05]}  Rc2 {[%clk 0:01:36]} 21. Rb1 {[%clk 0:02:05]}  e5 {[%clk 0:01:20]} 22. a3 {[%clk 0:02:02]}  Bd6 {[%clk 0:01:19]} 23. Kf1 {[%clk 0:01:57]}  Ke7 {[%clk 0:01:17]} 24. Ke1 {[%clk 0:01:57]}  f5 {[%clk 0:01:14]} 25. f3 {[%clk 0:01:54]}  Nf6 {[%clk 0:01:13]} 26. Kd1 {[%clk 0:01:54]}  Rc8 {[%clk 0:01:13]} 27. Rc1 {[%clk 0:01:54]}  Rd8 {[%clk 0:01:12]} 28. Ke1 {[%clk 0:01:52]}  h6 {[%clk 0:01:07]} 29. Rc6 {[%clk 0:01:52]}  Nd5 {[%clk 0:00:58]} 30. Bc5 {[%clk 0:01:48]}  Bxc5 {[%clk 0:00:53]} 31. Nxc5 {[%clk 0:01:49]}  Ne3 {[%clk 0:00:48]} 32. Re6+ {[%clk 0:01:47]}  Kf7 {[%clk 0:00:44]} 33. Rxe5 {[%clk 0:01:46]}  Nc4 {[%clk 0:00:34]} 34. Rxf5+ {[%clk 0:01:45]}  Kg6 {[%clk 0:00:35]} 35. Rf4 {[%clk 0:01:43]}  Nxb2 {[%clk 0:00:35]} 36. Nxa6 {[%clk 0:01:43]}  Ra8 {[%clk 0:00:30]} 37. Nc7 {[%clk 0:01:43]}  Rxa3 {[%clk 0:00:31]} 38. Nxb5 {[%clk 0:01:43]}  Ra1+ {[%clk 0:00:31]} 39. Kf2 {[%clk 0:01:43]}  Nd1+ {[%clk 0:00:32]} 40. Kg2 {[%clk 0:01:42]}  Ne3+ {[%clk 0:00:32]} 41. Kh3 {[%clk 0:01:43]}  Ra5 {[%clk 0:00:32]} 42. Re4 {[%clk 0:01:25]}  Nd1 {[%clk 0:00:29]} 43. Re5 {[%clk 0:01:26]}  Kf6 {[%clk 0:00:27]} 44. f4 {[%clk 0:01:19]}  Nf2+ {[%clk 0:00:25]} 45. Kg2 {[%clk 0:01:19]}  Ng4 {[%clk 0:00:25]} 46. Rc5 {[%clk 0:01:19]}  Ra2 {[%clk 0:00:22]} 47. Nc3 {[%clk 0:01:19]}  Rb2 {[%clk 0:00:22]} 48. h3 {[%clk 0:01:17]}  Ne3+ {[%clk 0:00:22]} 49. Kf3 {[%clk 0:01:17]}  Nc2 {[%clk 0:00:21]} 50. Nd5+ {[%clk 0:01:15]}  Ke6 {[%clk 0:00:21]} 51. e4 {[%clk 0:01:08]}  h5 {[%clk 0:00:22]} 52. Rc6+ {[%clk 0:01:07]}  Kd7 {[%clk 0:00:22]} 53. Rg6 {[%clk 0:01:07]}  Rb3+ {[%clk 0:00:16]} 54. Ke2 {[%clk 0:01:06]}  Nd4+ {[%clk 0:00:17]} 55. Kd2 {[%clk 0:01:06]}  Nf3+ {[%clk 0:00:17]} 56. Kd1 {[%clk 0:01:06]}  Ng1 {[%clk 0:00:13]} 57. Kc2 {[%clk 0:01:03]}  Rf3 {[%clk 0:00:12]} 58. e5 {[%clk 0:01:00]}  Nxh3 {[%clk 0:00:12]} 59. Rd6+ {[%clk 0:01:00]}  Ke8 {[%clk 0:00:12]} 60. e6 {[%clk 0:01:01]}  h4 {[%clk 0:00:10]} 61. e7 {[%clk 0:01:01]} 1-0


[Site "https://www.chess.com"]